[Event "Early-Titled-Tuesday-Blitz-May-07-2024"]
[Site "Chess.com"]
[Date "2024.05.07"]
[Round "7"]
[White "juanchesst"]
[Black "MatthewG-p4p"]
[Result "0-1"]
[WhiteElo "2667"]
[BlackElo "2878"]
[TimeControl "180+1"]
[EndTime "9:22:34 PDT"]
[Termination "MatthewG-p4p won by resignation"]

1. d4 {[%clk 0:03:00.9]} 1... Nf6 {[%clk 0:02:46.4]} 2. Nf3 {[%clk 0:03:00.7]}
2... c5 {[%clk 0:02:46.6]} 3. d5 {[%clk 0:03:00.5]} 3... b5 {[%clk 0:02:46.6]}
4. Bg5 {[%clk 0:02:59.1]} 4... g6 {[%clk 0:02:46.8]} 5. Bxf6 {[%clk 0:02:58.2]}
5... exf6 {[%clk 0:02:47.7]} 6. e4 {[%clk 0:02:57.7]} 6... b4 {[%clk 0:02:47]}
7. Bd3 {[%clk 0:02:56.4]} 7... Bg7 {[%clk 0:02:47.1]} 8. Nbd2 {[%clk 0:02:54.6]}
8... O-O {[%clk 0:02:47.2]} 9. O-O {[%clk 0:02:54.2]} 9... d6 {[%clk 0:02:47.5]}
10. a3 {[%clk 0:02:48.2]} 10... a5 {[%clk 0:02:46.9]} 11. axb4 {[%clk
0:02:46.9]} 11... cxb4 {[%clk 0:02:47.8]} 12. Ra2 {[%clk 0:02:35]} 12... Nd7
{[%clk 0:02:47.5]} 13. Nc4 {[%clk 0:02:32]} 13... Nc5 {[%clk 0:02:47.1]} 14. Qa1
{[%clk 0:02:28.6]} 14... a4 {[%clk 0:02:46.6]} 15. Nfd2 {[%clk 0:02:18.8]} 15...
Ba6 {[%clk 0:02:42.9]} 16. Rd1 {[%clk 0:02:10.8]} 16... Re8 {[%clk 0:02:31.4]}
17. Bf1 {[%clk 0:02:06.7]} 17... Rc8 {[%clk 0:02:15.3]} 18. Ne3 {[%clk
0:01:43.6]} 18... Bxf1 {[%clk 0:02:11.1]} 19. Rxf1 {[%clk 0:01:40.4]} 19... Qc7
{[%clk 0:01:06.1]} 20. c3 {[%clk 0:01:39.1]} 20... b3 {[%clk 0:01:01]} 21. Rxa4
{[%clk 0:01:38]} 21... Nxa4 {[%clk 0:01:00.5]} 22. Qxa4 {[%clk 0:01:38.9]} 22...
Rb8 {[%clk 0:00:57.8]} 23. Nec4 {[%clk 0:01:11.2]} 23... Bh6 {[%clk 0:00:53.9]}
24. f4 {[%clk 0:01:09.5]} 24... Qc5+ {[%clk 0:00:52.1]} 25. Kh1 {[%clk
0:01:09.4]} 25... f5 {[%clk 0:00:48.8]} 26. exf5 {[%clk 0:01:07.9]} 26... Qxd5
{[%clk 0:00:37]} 27. fxg6 {[%clk 0:01:03.4]} 27... hxg6 {[%clk 0:00:37.3]} 28.
h3 {[%clk 0:01:03.5]} 28... Re2 {[%clk 0:00:37.4]} 29. Nf3 {[%clk 0:00:59.7]}
29... Bxf4 {[%clk 0:00:32]} 30. Nb6 {[%clk 0:00:39.2]} 30... Qe4 {[%clk
0:00:31.8]} 31. Qxe4 {[%clk 0:00:31.2]} 31... Rxe4 {[%clk 0:00:31.7]} 32. Nd5
{[%clk 0:00:32]} 32... Kg7 {[%clk 0:00:22.4]} 33. Nd4 {[%clk 0:00:30]} 33... Be5
{[%clk 0:00:21.2]} 34. Nc6 {[%clk 0:00:30.1]} 34... Ra8 {[%clk 0:00:18.9]} 35.
Ncb4 {[%clk 0:00:21.8]} 35... Bg3 {[%clk 0:00:16.7]} 36. Rd1 {[%clk 0:00:20.3]}
36... Rae8 {[%clk 0:00:15]} 37. Nd3 {[%clk 0:00:17.9]} 37... Re2 {[%clk
0:00:15.1]} 38. Kg1 {[%clk 0:00:16.4]} 38... g5 {[%clk 0:00:09.8]} 39. Kf1
{[%clk 0:00:16.3]} 39... f5 {[%clk 0:00:10.1]} 40. Nc7 {[%clk 0:00:15.1]} 40...
R8e3 {[%clk 0:00:08.8]} 41. Nd5 {[%clk 0:00:11.2]} 41... Re4 {[%clk 0:00:09.2]}
42. c4 {[%clk 0:00:09.9]} 42... Rc2 {[%clk 0:00:08.8]} 43. Nc3 {[%clk
0:00:09.8]} 43... Rxc4 {[%clk 0:00:07.4]} 44. Ne1 {[%clk 0:00:08.9]} 44... Rf2+
{[%clk 0:00:06.4]} 45. Kg1 {[%clk 0:00:09]} 45... Rxb2 {[%clk 0:00:07.3]} 46.
Nd5 {[%clk 0:00:03.9]} 46... Re2 {[%clk 0:00:06.2]} 47. Nd3 {[%clk 0:00:03.5]}
47... b2 {[%clk 0:00:06.7]} 48. Nxb2 {[%clk 0:00:03.6]} 48... Rxb2 {[%clk
0:00:07.6]} 49. Ne7 {[%clk 0:00:03.2]} 49... Kf6 {[%clk 0:00:06.3]} 50. Nd5+
{[%clk 0:00:03.4]} 50... Ke6 {[%clk 0:00:06.6]} 51. Ne3 {[%clk 0:00:03.3]} 51...
Bf2+ {[%clk 0:00:07]} 0-1

[Event "Early-Titled-Tuesday-Blitz-May-07-2024"]
[Site "Chess.com"]
[Date "2024.05.07"]
[Round "7"]
[White "Iskusnyh"]
[Black "Cheer_Down"]
[Result "0-1"]
[WhiteElo "2588"]
[BlackElo "2482"]
[TimeControl "180+1"]
[EndTime "9:22:38 PDT"]
[Termination "Cheer_Down won on time"]

1. d4 {[%clk 0:03:00.9]} 1... d5 {[%clk 0:02:59.7]} 2. c4 {[%clk 0:03:00.2]}
2... e6 {[%clk 0:02:59.9]} 3. Nf3 {[%clk 0:02:59.4]} 3... Nf6 {[%clk 0:02:59.8]}
4. g3 {[%clk 0:02:58.2]} 4... Be7 {[%clk 0:02:59.5]} 5. Bg2 {[%clk 0:02:57.3]}
5... O-O {[%clk 0:02:59.6]} 6. O-O {[%clk 0:02:56.4]} 6... dxc4 {[%clk
0:02:59.3]} 7. Na3 {[%clk 0:02:55.4]} 7... Bxa3 {[%clk 0:02:56.6]} 8. bxa3
{[%clk 0:02:56.3]} 8... Bd7 {[%clk 0:02:56.2]} 9. Ne5 {[%clk 0:02:54.3]} 9...
Bc6 {[%clk 0:02:56.3]} 10. Nxc6 {[%clk 0:02:52.2]} 10... Nxc6 {[%clk 0:02:56.3]}
11. Bb2 {[%clk 0:02:52.8]} 11... Nd5 {[%clk 0:02:54]} 12. Rc1 {[%clk 0:02:50.1]}
12... Nb6 {[%clk 0:02:53.9]} 13. a4 {[%clk 0:02:22.2]} 13... a5 {[%clk
0:02:51.1]} 14. e3 {[%clk 0:02:16.4]} 14... Qd6 {[%clk 0:02:48.2]} 15. Rc3
{[%clk 0:01:59.6]} 15... Qb4 {[%clk 0:02:38.9]} 16. Qc1 {[%clk 0:01:27]} 16...
Nxa4 {[%clk 0:02:34.1]} 17. Rxc4 {[%clk 0:01:26.5]} 17... Qxb2 {[%clk
0:02:33.7]} 18. Rxa4 {[%clk 0:01:26.1]} 18... Qxc1 {[%clk 0:02:33.8]} 19. Rxc1
{[%clk 0:01:26.6]} 19... Ra6 {[%clk 0:02:32.1]} 20. Bxc6 {[%clk 0:01:25.3]}
20... bxc6 {[%clk 0:02:32.2]} 21. Rac4 {[%clk 0:01:24.9]} 21... Rfa8 {[%clk
0:01:30.1]} 22. Rxc6 {[%clk 0:01:24.4]} 22... Rxc6 {[%clk 0:01:30.3]} 23. Rxc6
{[%clk 0:01:23.7]} 23... Ra7 {[%clk 0:01:30.4]} 24. Kf1 {[%clk 0:01:16.1]} 24...
Kf8 {[%clk 0:01:30.1]} 25. Ke2 {[%clk 0:01:16]} 25... Ke7 {[%clk 0:01:30.4]} 26.
Kd3 {[%clk 0:01:15.9]} 26... Kd7 {[%clk 0:01:30.5]} 27. Rc5 {[%clk 0:01:15.1]}
27... g6 {[%clk 0:01:30.4]} 28. g4 {[%clk 0:01:13.5]} 28... Ra6 {[%clk
0:01:23.2]} 29. a4 {[%clk 0:01:07.6]} 29... Rb6 {[%clk 0:01:18.7]} 30. f4 {[%clk
0:00:59.5]} 30... Rb2 {[%clk 0:01:10.2]} 31. h4 {[%clk 0:00:59]} 31... Rg2
{[%clk 0:01:07.6]} 32. g5 {[%clk 0:00:57.3]} 32... Rh2 {[%clk 0:01:06.9]} 33.
Rxa5 {[%clk 0:00:57]} 33... Rxh4 {[%clk 0:01:07.5]} 34. Ke4 {[%clk 0:00:36.5]}
34... h6 {[%clk 0:01:04.2]} 35. gxh6 {[%clk 0:00:35.7]} 35... Rxh6 {[%clk
0:01:03.9]} 36. Rc5 {[%clk 0:00:33.9]} 36... f6 {[%clk 0:00:55.8]} 37. Rc3
{[%clk 0:00:28.4]} 37... Rh5 {[%clk 0:00:50.7]} 38. Kd3 {[%clk 0:00:25.9]} 38...
Ra5 {[%clk 0:00:44.7]} 39. Rc4 {[%clk 0:00:24.8]} 39... g5 {[%clk 0:00:40.7]}
40. fxg5 {[%clk 0:00:24.8]} 40... Rxg5 {[%clk 0:00:33.7]} 41. Ke4 {[%clk
0:00:20.8]} 41... Ra5 {[%clk 0:00:32.5]} 42. Kf4 {[%clk 0:00:21]} 42... Kd6
{[%clk 0:00:31.7]} 43. e4 {[%clk 0:00:21.3]} 43... c5 {[%clk 0:00:31.1]} 44. e5+
{[%clk 0:00:19.4]} 44... fxe5+ {[%clk 0:00:30.1]} 45. dxe5+ {[%clk 0:00:16.9]}
45... Kd5 {[%clk 0:00:30.1]} 46. Re4 {[%clk 0:00:15.9]} 46... c4 {[%clk
0:00:30.5]} 47. Re1 {[%clk 0:00:13.4]} 47... Rxa4 {[%clk 0:00:30.2]} 48. Rd1+
{[%clk 0:00:14]} 48... Kc5 {[%clk 0:00:30]} 49. Rd6 {[%clk 0:00:14]} 49... c3+
{[%clk 0:00:29.1]} 50. Ke3 {[%clk 0:00:14.3]} 50... c2 {[%clk 0:00:22.1]} 51.
Kd2 {[%clk 0:00:06.4]} 51... Rd4+ {[%clk 0:00:21.7]} 52. Kxc2 {[%clk 0:00:06.8]}
52... Rxd6 {[%clk 0:00:21.1]} 53. exd6 {[%clk 0:00:06.4]} 53... Kxd6 {[%clk
0:00:22]} 54. Kc3 {[%clk 0:00:06.6]} 54... Ke5 {[%clk 0:00:21.5]} 55. Kd3 {[%clk
0:00:07.1]} 55... Kf4 {[%clk 0:00:21.7]} 56. Ke2 {[%clk 0:00:08]} 56... Ke4
{[%clk 0:00:22]} 0-1

[Event "Early-Titled-Tuesday-Blitz-May-07-2024"]
[Site "Chess.com"]
[Date "2024.05.07"]
[Round "7"]
[White "Oleg_Papayan"]
[Black "Me_ch_an"]
[Result "1-0"]
[WhiteElo "2676"]
[BlackElo "2365"]
[TimeControl "180+1"]
[EndTime "9:22:38 PDT"]
[Termination "Oleg_Papayan won by resignation"]

1. e4 {[%clk 0:03:00.9]} 1... c5 {[%clk 0:02:55.4]} 2. d4 {[%clk 0:03:00.8]}
2... cxd4 {[%clk 0:02:54.8]} 3. Qxd4 {[%clk 0:03:01.7]} 3... Nc6 {[%clk
0:02:52.4]} 4. Qd3 {[%clk 0:03:02.3]} 4... Nf6 {[%clk 0:02:52.3]} 5. Nc3 {[%clk
0:03:02.3]} 5... e5 {[%clk 0:02:49.1]} 6. Bg5 {[%clk 0:02:52.7]} 6... Bb4 {[%clk
0:02:43]} 7. Ne2 {[%clk 0:02:35.3]} 7... h6 {[%clk 0:02:39.3]} 8. Bh4 {[%clk
0:02:27.2]} 8... O-O {[%clk 0:02:37.2]} 9. O-O-O {[%clk 0:02:26.2]} 9... g5
{[%clk 0:02:19.4]} 10. Bg3 {[%clk 0:02:26.1]} 10... d6 {[%clk 0:01:22.8]} 11. h4
{[%clk 0:02:21.9]} 11... g4 {[%clk 0:01:19.5]} 12. h5 {[%clk 0:02:20.1]} 12...
a5 {[%clk 0:01:17.1]} 13. Bh4 {[%clk 0:02:19.2]} 13... Be6 {[%clk 0:01:12.7]}
14. Nd5 {[%clk 0:02:13.3]} 14... Bxd5 {[%clk 0:01:06.6]} 15. exd5 {[%clk
0:02:13.2]} 15... Nb8 {[%clk 0:01:06.4]} 16. Qf5 {[%clk 0:01:58.2]} 16... Nbd7
{[%clk 0:01:04.5]} 17. Ng3 {[%clk 0:01:58.5]} 17... Kg7 {[%clk 0:00:46.2]} 18.
Ne4 {[%clk 0:01:45.1]} 18... Rc8 {[%clk 0:00:45.7]} 19. Bd3 {[%clk 0:01:43.9]}
19... Rh8 {[%clk 0:00:39.1]} 20. Nxf6 {[%clk 0:01:37.5]} 20... Nxf6 {[%clk
0:00:38.6]} 21. Bxf6+ {[%clk 0:01:38]} 21... Qxf6 {[%clk 0:00:37.9]} 22. Qxg4+
{[%clk 0:01:36.8]} 22... Qg5+ {[%clk 0:00:38.2]} 23. Qxg5+ {[%clk 0:01:36.1]}
23... hxg5 {[%clk 0:00:39.1]} 24. c3 {[%clk 0:01:10.6]} 24... Bc5 {[%clk
0:00:36.7]} 25. Bf5 {[%clk 0:01:10.1]} 25... Rb8 {[%clk 0:00:35.3]} 26. f3
{[%clk 0:01:06.6]} 26... b5 {[%clk 0:00:34.5]} 27. Kc2 {[%clk 0:01:05.8]} 27...
b4 {[%clk 0:00:34.3]} 28. c4 {[%clk 0:01:03.6]} 28... a4 {[%clk 0:00:33.5]} 29.
Kd3 {[%clk 0:00:51.3]} 29... Bd4 {[%clk 0:00:28.6]} 30. Rd2 {[%clk 0:00:43.6]}
30... Kh6 {[%clk 0:00:28.1]} 31. g3 {[%clk 0:00:43.3]} 31... a3 {[%clk
0:00:20.4]} 32. b3 {[%clk 0:00:39.5]} 32... Rbd8 {[%clk 0:00:19.4]} 33. Ke4
{[%clk 0:00:38.7]} 33... Bc3 {[%clk 0:00:19.4]} 34. Rg2 {[%clk 0:00:38.1]} 34...
Bd4 {[%clk 0:00:19.4]} 35. Rd2 {[%clk 0:00:37.6]} 35... Bc3 {[%clk 0:00:19.5]}
36. Rd3 {[%clk 0:00:38.3]} 36... Bd4 {[%clk 0:00:19.7]} 37. Rhd1 {[%clk
0:00:31.3]} 37... Bb2 {[%clk 0:00:19.6]} 38. Bg4 {[%clk 0:00:29.2]} 38... Rb8
{[%clk 0:00:14.6]} 39. R1d2 {[%clk 0:00:28.1]} 39... Rbd8 {[%clk 0:00:13.9]} 40.
Rd1 {[%clk 0:00:26.4]} 40... Ra8 {[%clk 0:00:13.7]} 41. R3d2 {[%clk 0:00:26.6]}
41... Bc3 {[%clk 0:00:13.6]} 42. Rc2 {[%clk 0:00:26.9]} 42... Bb2 {[%clk
0:00:13.4]} 43. Rb1 {[%clk 0:00:26.5]} 43... Bd4 {[%clk 0:00:13.1]} 44. Rd1
{[%clk 0:00:26.6]} 44... Bb2 {[%clk 0:00:13]} 45. c5 {[%clk 0:00:27.1]} 45...
dxc5 {[%clk 0:00:12.3]} 46. Rxc5 {[%clk 0:00:28]} 46... Bd4 {[%clk 0:00:10.9]}
47. Rc6+ {[%clk 0:00:27.5]} 47... Kg7 {[%clk 0:00:11]} 48. Rc4 {[%clk 0:00:24]}
48... Bb2 {[%clk 0:00:10.5]} 49. Rxb4 {[%clk 0:00:23.7]} 49... Bc3 {[%clk
0:00:10.5]} 50. Rc4 {[%clk 0:00:23.7]} 50... Bb2 {[%clk 0:00:10.4]} 51. d6
{[%clk 0:00:23.7]} 51... Rhd8 {[%clk 0:00:08.8]} 52. d7 {[%clk 0:00:21.9]} 52...
Ra5 {[%clk 0:00:08]} 53. Rc8 {[%clk 0:00:17.5]} 53... Ra8 {[%clk 0:00:08.1]} 54.
Rxa8 {[%clk 0:00:17.7]} 1-0

[Event "Early-Titled-Tuesday-Blitz-May-07-2024"]
[Site "Chess.com"]
[Date "2024.05.07"]
[Round "7"]
[White "Ivan11Martic"]
[Black "GMKrikor"]
[Result "0-1"]
[WhiteElo "2625"]
[BlackElo "2853"]
[TimeControl "180+1"]
[EndTime "9:22:41 PDT"]
[Termination "GMKrikor won by resignation"]

1. e4 {[%clk 0:03:00.9]} 1... c5 {[%clk 0:03:00.1]} 2. Nf3 {[%clk 0:03:00.9]}
2... Nc6 {[%clk 0:02:59.3]} 3. d4 {[%clk 0:03:00.7]} 3... cxd4 {[%clk
0:03:00.2]} 4. Nxd4 {[%clk 0:03:01.2]} 4... Nf6 {[%clk 0:03:00.6]} 5. Nc3 {[%clk
0:03:01.2]} 5... e5 {[%clk 0:03:01]} 6. Ndb5 {[%clk 0:03:01.5]} 6... d6 {[%clk
0:03:01.5]} 7. Bg5 {[%clk 0:03:01.5]} 7... a6 {[%clk 0:03:02.2]} 8. Na3 {[%clk
0:03:01.1]} 8... b5 {[%clk 0:03:02.6]} 9. Nd5 {[%clk 0:03:01.4]} 9... Be7 {[%clk
0:03:02.5]} 10. Bxf6 {[%clk 0:03:01.8]} 10... Bxf6 {[%clk 0:03:02.8]} 11. c4
{[%clk 0:03:01.8]} 11... b4 {[%clk 0:03:03.1]} 12. Nc2 {[%clk 0:03:01.9]} 12...
O-O {[%clk 0:03:03.5]} 13. g3 {[%clk 0:03:00.8]} 13... a5 {[%clk 0:03:02]} 14.
Bg2 {[%clk 0:03:00.2]} 14... Bg5 {[%clk 0:03:02.7]} 15. O-O {[%clk 0:02:59.3]}
15... Be6 {[%clk 0:03:02.9]} 16. Qd3 {[%clk 0:02:58.3]} 16... Nb8 {[%clk
0:02:46.5]} 17. f4 {[%clk 0:02:50.9]} 17... Bh6 {[%clk 0:02:46.7]} 18. f5 {[%clk
0:02:45.3]} 18... Bxd5 {[%clk 0:02:19.9]} 19. Qxd5 {[%clk 0:02:46.2]} 19... Qb6+
{[%clk 0:02:19.5]} 20. Kh1 {[%clk 0:02:44.1]} 20... Nd7 {[%clk 0:02:19.4]} 21.
Rad1 {[%clk 0:02:38.4]} 21... Ra6 {[%clk 0:02:12.4]} 22. Qb5 {[%clk 0:01:48.5]}
22... Nc5 {[%clk 0:02:07.3]} 23. b3 {[%clk 0:01:38.9]} 23... Qa7 {[%clk
0:01:52.1]} 24. Rd5 {[%clk 0:01:36.6]} 24... Rb8 {[%clk 0:01:36.6]} 25. Rxc5
{[%clk 0:01:35.8]} 25... dxc5 {[%clk 0:01:28.1]} 26. Rd1 {[%clk 0:01:35.8]}
26... g6 {[%clk 0:01:21.4]} 27. Qa4 {[%clk 0:01:29.9]} 27... Qc7 {[%clk
0:01:14.2]} 28. Rd5 {[%clk 0:01:22.9]} 28... Qc6 {[%clk 0:01:06.5]} 29. Qxc6
{[%clk 0:01:15.8]} 29... Rxc6 {[%clk 0:01:06.2]} 30. Rxe5 {[%clk 0:01:16.7]}
30... a4 {[%clk 0:01:00.4]} 31. Rd5 {[%clk 0:01:10.3]} 31... axb3 {[%clk
0:00:39.3]} 32. axb3 {[%clk 0:01:11.2]} 32... Re8 {[%clk 0:00:38.9]} 33. e5
{[%clk 0:01:04.6]} 33... Rc7 {[%clk 0:00:38.8]} 34. g4 {[%clk 0:01:01]} 34...
Bc1 {[%clk 0:00:35.9]} 35. Rd1 {[%clk 0:00:49.8]} 35... Bf4 {[%clk 0:00:30.7]}
36. e6 {[%clk 0:00:49.3]} 36... fxe6 {[%clk 0:00:31.6]} 37. fxe6 {[%clk
0:00:49.7]} 37... Kg7 {[%clk 0:00:28.8]} 38. Bd5 {[%clk 0:00:48.6]} 38... Rd8
{[%clk 0:00:28.2]} 39. Rf1 {[%clk 0:00:48.2]} 39... g5 {[%clk 0:00:25.1]} 40. h4
{[%clk 0:00:47.5]} 40... h6 {[%clk 0:00:25.2]} 41. Kg2 {[%clk 0:00:47.6]} 41...
Ra7 {[%clk 0:00:23.9]} 42. Rf2 {[%clk 0:00:45.9]} 42... Ra2 {[%clk 0:00:18.6]}
43. Re2 {[%clk 0:00:35.4]} 43... Re8 {[%clk 0:00:14.5]} 44. hxg5 {[%clk
0:00:34.5]} 44... hxg5 {[%clk 0:00:14.3]} 45. Kf3 {[%clk 0:00:30.9]} 45... Re7
{[%clk 0:00:11.1]} 46. Ke4 {[%clk 0:00:29.1]} 46... Kf6 {[%clk 0:00:09.9]} 47.
Kd3 {[%clk 0:00:24.9]} 47... Rh7 {[%clk 0:00:07.8]} 48. Bc6 {[%clk 0:00:20.3]}
48... Rh3+ {[%clk 0:00:06.6]} 49. Ke4 {[%clk 0:00:20]} 49... Rc3 {[%clk
0:00:06.3]} 50. e7 {[%clk 0:00:15]} 50... Kxe7 {[%clk 0:00:05.3]} 51. Kf5+
{[%clk 0:00:13.9]} 51... Kd6 {[%clk 0:00:05.9]} 52. Re6+ {[%clk 0:00:13.5]}
52... Kc7 {[%clk 0:00:06.5]} 53. Re7+ {[%clk 0:00:13.5]} 53... Kxc6 {[%clk
0:00:06.1]} 54. Re6+ {[%clk 0:00:12.3]} 54... Kd7 {[%clk 0:00:05.8]} 55. Ne1
{[%clk 0:00:08.5]} 55... Re3 {[%clk 0:00:06]} 56. Rg6 {[%clk 0:00:07.9]} 56...
Rxe1 {[%clk 0:00:06.2]} 0-1

[Event "Early-Titled-Tuesday-Blitz-May-07-2024"]
[Site "Chess.com"]
[Date "2024.05.07"]
[Round "7"]
[White "th3d4rkness"]
[Black "Goffredo_Fofi"]
[Result "0-1"]
[WhiteElo "2226"]
[BlackElo "2527"]
[TimeControl "180+1"]
[EndTime "9:22:41 PDT"]
[Termination "Goffredo_Fofi won on time"]

1. e4 {[%clk 0:03:00.9]} 1... Nf6 {[%clk 0:02:59.4]} 2. e5 {[%clk 0:02:59.2]}
2... Nd5 {[%clk 0:02:58.8]} 3. d4 {[%clk 0:02:58.7]} 3... d6 {[%clk 0:02:58.8]}
4. c4 {[%clk 0:02:58.9]} 4... Nb6 {[%clk 0:02:59]} 5. exd6 {[%clk 0:02:59.4]}
5... exd6 {[%clk 0:02:59.9]} 6. Be3 {[%clk 0:02:55.4]} 6... Nc6 {[%clk
0:02:59.8]} 7. Nc3 {[%clk 0:02:52.1]} 7... Be7 {[%clk 0:03:00.1]} 8. Be2 {[%clk
0:02:51.4]} 8... O-O {[%clk 0:02:56.7]} 9. Nf3 {[%clk 0:02:51.6]} 9... Bg4
{[%clk 0:02:56.7]} 10. b3 {[%clk 0:02:51.2]} 10... Bf6 {[%clk 0:02:53.4]} 11. h3
{[%clk 0:02:48.6]} 11... Bxf3 {[%clk 0:02:53.1]} 12. Bxf3 {[%clk 0:02:47.5]}
12... Bg5 {[%clk 0:02:46.8]} 13. Bxg5 {[%clk 0:02:42.9]} 13... Qxg5 {[%clk
0:02:47.7]} 14. O-O {[%clk 0:02:42.3]} 14... Rfe8 {[%clk 0:02:46.4]} 15. a4
{[%clk 0:02:36.7]} 15... a5 {[%clk 0:02:26.8]} 16. Nb5 {[%clk 0:02:35.8]} 16...
Re7 {[%clk 0:02:26.8]} 17. Ra2 {[%clk 0:02:14.8]} 17... Rae8 {[%clk 0:02:20.6]}
18. Re2 {[%clk 0:02:07]} 18... Rxe2 {[%clk 0:02:19.7]} 19. Bxe2 {[%clk
0:02:01.4]} 19... Qe7 {[%clk 0:02:06.4]} 20. Bf3 {[%clk 0:01:58.2]} 20... Nb4
{[%clk 0:02:04.9]} 21. d5 {[%clk 0:01:54]} 21... Qd8 {[%clk 0:01:37.5]} 22. Qd2
{[%clk 0:01:48.4]} 22... Nd7 {[%clk 0:01:34.9]} 23. Re1 {[%clk 0:01:27.8]} 23...
Rxe1+ {[%clk 0:01:32.7]} 24. Qxe1 {[%clk 0:01:27.6]} 24... g6 {[%clk 0:01:24.2]}
25. Qe3 {[%clk 0:01:25.8]} 25... Nc5 {[%clk 0:01:23.4]} 26. Bd1 {[%clk
0:01:18.5]} 26... c6 {[%clk 0:01:18]} 27. dxc6 {[%clk 0:01:15.5]} 27... bxc6
{[%clk 0:01:18.9]} 28. Nd4 {[%clk 0:01:11.9]} 28... Kg7 {[%clk 0:01:00.8]} 29.
Nf3 {[%clk 0:01:10.3]} 29... Qf6 {[%clk 0:00:52.6]} 30. Qd4 {[%clk 0:01:08.9]}
30... Qxd4 {[%clk 0:00:46.5]} 31. Nxd4 {[%clk 0:01:08.6]} 31... Kf6 {[%clk
0:00:47.4]} 32. f4 {[%clk 0:01:07.9]} 32... d5 {[%clk 0:00:22]} 33. cxd5 {[%clk
0:01:04.1]} 33... cxd5 {[%clk 0:00:22.9]} 34. Kf2 {[%clk 0:01:02.6]} 34... Ne6
{[%clk 0:00:19.8]} 35. Ke3 {[%clk 0:00:58.4]} 35... Nc5 {[%clk 0:00:17.5]} 36.
g4 {[%clk 0:00:55.4]} 36... g5 {[%clk 0:00:15.2]} 37. fxg5+ {[%clk 0:00:51.7]}
37... Kxg5 {[%clk 0:00:16.1]} 38. Nf3+ {[%clk 0:00:51.9]} 38... Kf6 {[%clk
0:00:14.8]} 39. Kd4 {[%clk 0:00:52.3]} 39... Ne6+ {[%clk 0:00:14.8]} 40. Ke3
{[%clk 0:00:48.2]} 40... Ke7 {[%clk 0:00:15]} 41. Nd4 {[%clk 0:00:46.7]} 41...
Kd6 {[%clk 0:00:13.9]} 42. Nf5+ {[%clk 0:00:39]} 42... Ke5 {[%clk 0:00:13.8]}
43. Bf3 {[%clk 0:00:34.6]} 43... d4+ {[%clk 0:00:12.5]} 44. Kd2 {[%clk
0:00:34.4]} 44... Nc5 {[%clk 0:00:10.6]} 45. Bd1 {[%clk 0:00:33.5]} 45... Ne4+
{[%clk 0:00:10.1]} 46. Ke1 {[%clk 0:00:30]} 46... d3 {[%clk 0:00:09.2]} 47. Ne3
{[%clk 0:00:24]} 47... Kd4 {[%clk 0:00:08.4]} 48. Nf5+ {[%clk 0:00:17.7]} 48...
Kc3 {[%clk 0:00:08.7]} 49. Nh6 {[%clk 0:00:17.8]} 49... f6 {[%clk 0:00:08]} 50.
Nf5 {[%clk 0:00:14.6]} 50... Nc2+ {[%clk 0:00:08.2]} 51. Kf1 {[%clk 0:00:07]}
51... Ne3+ {[%clk 0:00:08.3]} 52. Nxe3 {[%clk 0:00:06.6]} 52... Kd2 {[%clk
0:00:06.5]} 0-1

[Event "Early-Titled-Tuesday-Blitz-May-07-2024"]
[Site "Chess.com"]
[Date "2024.05.07"]
[Round "7"]
[White "kuchma777"]
[Black "BirdMaster3000"]
[Result "1-0"]
[WhiteElo "2512"]
[BlackElo "2614"]
[TimeControl "180+1"]
[EndTime "9:22:44 PDT"]
[Termination "kuchma777 won by resignation"]

1. e4 {[%clk 0:03:00.9]} 1... c5 {[%clk 0:03:00]} 2. Nf3 {[%clk 0:03:00.6]} 2...
e6 {[%clk 0:03:00.3]} 3. c3 {[%clk 0:03:00.4]} 3... Nf6 {[%clk 0:02:52.1]} 4. e5
{[%clk 0:03:00]} 4... Nd5 {[%clk 0:02:52.4]} 5. Bc4 {[%clk 0:03:00.7]} 5... Nb6
{[%clk 0:02:50.5]} 6. Bb3 {[%clk 0:03:00.8]} 6... c4 {[%clk 0:02:49.6]} 7. Bc2
{[%clk 0:03:00.9]} 7... d6 {[%clk 0:02:49.2]} 8. exd6 {[%clk 0:02:45.5]} 8...
Bxd6 {[%clk 0:02:49]} 9. O-O {[%clk 0:02:45]} 9... Nc6 {[%clk 0:02:49]} 10. b3
{[%clk 0:02:45]} 10... O-O {[%clk 0:02:44.6]} 11. bxc4 {[%clk 0:02:38.7]} 11...
e5 {[%clk 0:02:44.6]} 12. d4 {[%clk 0:02:39.6]} 12... exd4 {[%clk 0:02:41.4]}
13. cxd4 {[%clk 0:02:38.6]} 13... Nxc4 {[%clk 0:02:41.5]} 14. Qd3 {[%clk
0:02:38.6]} 14... g6 {[%clk 0:02:38.9]} 15. Qxc4 {[%clk 0:02:37.2]} 15... Bg4
{[%clk 0:02:38.4]} 16. Bg5 {[%clk 0:01:52]} 16... Qd7 {[%clk 0:02:34.8]} 17.
Nbd2 {[%clk 0:01:51.1]} 17... Rac8 {[%clk 0:02:34.7]} 18. Ne4 {[%clk 0:01:29.8]}
18... Be7 {[%clk 0:02:34.3]} 19. Bxe7 {[%clk 0:01:00.7]} 19... Qxe7 {[%clk
0:02:33.2]} 20. Qc5 {[%clk 0:00:34.2]} 20... Bxf3 {[%clk 0:02:32.6]} 21. gxf3
{[%clk 0:00:33.7]} 21... Qh4 {[%clk 0:02:22]} 22. Bb3 {[%clk 0:00:30.5]} 22...
Rcd8 {[%clk 0:02:15.5]} 23. Rad1 {[%clk 0:00:29.1]} 23... Kg7 {[%clk 0:02:08.5]}
24. d5 {[%clk 0:00:11.8]} 24... Ne5 {[%clk 0:02:04.5]} 25. Qc3 {[%clk
0:00:12.3]} 25... f6 {[%clk 0:02:05.1]} 26. Ng3 {[%clk 0:00:09.9]} 26... h5
{[%clk 0:01:49.3]} 27. Kg2 {[%clk 0:00:07.7]} 27... Qg5 {[%clk 0:01:48.5]} 28.
Qe3 {[%clk 0:00:05.8]} 28... h4 {[%clk 0:01:44.1]} 29. Qxg5 {[%clk 0:00:06.1]}
29... fxg5 {[%clk 0:01:45]} 30. Ne4 {[%clk 0:00:06.9]} 30... Nxf3 {[%clk
0:01:44.4]} 31. Nc5 {[%clk 0:00:07.3]} 31... h3+ {[%clk 0:01:28.9]} 32. Kh1
{[%clk 0:00:07.2]} 32... g4 {[%clk 0:01:19.5]} 33. Ne6+ {[%clk 0:00:07.7]} 33...
Kf6 {[%clk 0:01:20.1]} 34. Nxf8 {[%clk 0:00:07.3]} 34... Rxf8 {[%clk 0:01:20]}
35. d6 {[%clk 0:00:07.5]} 35... Rd8 {[%clk 0:01:19.6]} 36. Bd5 {[%clk
0:00:05.7]} 36... Ne5 {[%clk 0:01:17.5]} 37. Bxb7 {[%clk 0:00:05.7]} 37... Ke6
{[%clk 0:01:16.6]} 38. Be4 {[%clk 0:00:04.5]} 38... Kd7 {[%clk 0:01:11.6]} 39.
Rd5 {[%clk 0:00:03.4]} 39... Re8 {[%clk 0:01:11.1]} 40. Rfd1 {[%clk 0:00:03]}
40... Re6 {[%clk 0:01:07.8]} 41. Bc2 {[%clk 0:00:03.1]} 41... Nc4 {[%clk
0:01:01.5]} 42. Ba4+ {[%clk 0:00:03.3]} 42... Kd8 {[%clk 0:01:02.1]} 43. d7
{[%clk 0:00:03.1]} 43... Nb6 {[%clk 0:01:02.9]} 44. Rc5 {[%clk 0:00:03.1]} 44...
Re4 {[%clk 0:00:54.7]} 45. Bb5 {[%clk 0:00:03.1]} 45... a6 {[%clk 0:00:53.9]}
46. Bxa6 {[%clk 0:00:03.6]} 46... Nxd7 {[%clk 0:00:33.8]} 47. Bb5 {[%clk
0:00:03.7]} 47... Ke8 {[%clk 0:00:32.8]} 48. Bxd7+ {[%clk 0:00:03.6]} 48... Ke7
{[%clk 0:00:33]} 49. Rcc1 {[%clk 0:00:02.9]} 49... Kf6 {[%clk 0:00:32.6]} 50.
Bc6 {[%clk 0:00:03.2]} 50... Rf4 {[%clk 0:00:31.3]} 51. Kg1 {[%clk 0:00:03.5]}
51... Kg5 {[%clk 0:00:31.6]} 52. a4 {[%clk 0:00:03.8]} 52... Rb4 {[%clk
0:00:29.7]} 53. a5 {[%clk 0:00:03.8]} 53... g3 {[%clk 0:00:24.2]} 54. hxg3
{[%clk 0:00:03.6]} 54... Kg4 {[%clk 0:00:23.4]} 55. a6 {[%clk 0:00:03.1]} 55...
h2+ {[%clk 0:00:21.4]} 56. Kxh2 {[%clk 0:00:02.8]} 56... Rb8 {[%clk 0:00:21.2]}
57. a7 {[%clk 0:00:02.7]} 57... Rh8+ {[%clk 0:00:21.2]} 58. Kg2 {[%clk
0:00:02.7]} 58... g5 {[%clk 0:00:22.1]} 59. a8=Q {[%clk 0:00:02.7]} 1-0